[Event "EYCC O18-ch 2024"]
[Site "Prague"]
[Date "2024.08.30"]
[Round "8.11"]
[White "Bokhnak, Timofey"]
[Black "Ozen, Metehan"]
[Result "1/2-1/2"]
[ECO "C02"]
[WhiteElo "2273"]
[BlackElo "2142"]
[Annotator "RC"]
[PlyCount "96"]
[EventDate "2024.08.19"]
[EventType "swiss"]
[EventCountry "CZE"]
[SourceTitle "playchess.com"]
[Source "ChessBase"]
[SourceQuality "1"]
[TimeControl "5400+30"]

1. e4 {[%emt 0:00:10]} e6 {[%emt 0:00:03]} 2. d4 {[%emt 0:00:16]} d5 {[%emt 0:01:26]} 3. e5 {[%emt 0:01:05]} c5 {[%emt 0:00:15]} 4. c3 {[%emt 0:00:01]} Qb6 {[%emt 0:00:36]} 5. Nf3 {[%emt 0:00:58]} Bd7 {[%emt 0:00:21]} 6. Be2 {[%emt 0:11:30]} Bb5 {[%emt 0:01:35]} 7. dxc5 {[%emt 0:01:45]} Bxc5 {[%emt 0:00:08]} 8. b4 {[%emt 0:00:02]} Bxf2+ {[%emt 0:05:12]} 9. Kf1 {[%emt 0:00:02]} Bd7 {[%emt 0:00:06]} 10. Qd2 {[%emt 0:00:21]} Nh6 {[%emt 0:03:56]} 11. Bd3 {[%emt 0:16:05]} Ng4 {[%emt 0:01:29]} 12. h3 {[%emt 0:04:48]} Be3 {[%emt 0:00:49]} 13. Qe2 {[%emt 0:04:12]} Bxc1 {[%emt 0:01:45]} 14. hxg4 {[%emt 0:00:05]} Nc6 {[%emt 0:07:59]} 15. g3 {[%emt 0:06:08]} Qe3 {[%emt 0:03:41]} 16. a4 {[%emt 0:00:16]} O-O-O {[%emt 0:09:22]} 17. Ra2 {[%emt 0:02:00]} f6 {[%emt 0:20:12]} 18. exf6 {[%emt 0:25:14]} gxf6 {[%emt 0:00:37]} 19. Qxe3 {[%emt 0:05:42]} Bxe3 {[%emt 0:01:04]} 20. Rxh7 {[%emt 0:00:31]} Rhg8 {[%emt 0:04:47]} 21. Re2 {[%emt 0:01:02]} Bb6 {[%emt 0:01:06]} 22. Rh4 {[%emt 0:06:09]} e5 {[%emt 0:01:51]} 23. Nh2 {[%emt 0:00:26]} e4 {[%emt 0:03:12]} 24. Bc2 {[%emt 0:00:46]} Ne5 {[%emt 0:00:44]} 25. Bb3 {[%emt 0:00:51]} Bxg4 {[%emt 0:10:36]} 26. Nxg4 {[%emt 0:00:11]} Nxg4 {[%emt 0:00:07]} 27. a5 {[%emt 0:02:46]} Bc7 {[%emt 0:00:05]} 28. Rh5 {[%emt 0:00:13]} Rg5 {[%emt 0:12:04]} 29. Rxg5 {[%emt 0:00:31]} fxg5 {[%emt 0:00:01]} 30. Kg2 {[%emt 0:00:13]} Kb8 {[%emt 0:01:49]} 31. Nd2 {[%emt 0:00:41]} a6 {[%emt 0:01:08]} 32. Nf1 {[%emt 0:02:03]} b6 {[%emt 0:02:52]} 33. axb6 {[%emt 0:00:37]} Bxb6 {[%emt 0:00:01]} 34. c4 {[%emt 0:00:12]} dxc4 {[%emt 0:00:50]} 35. Bxc4 {[%emt 0:00:10]} Rd4 {[%emt 0:00:21]} 36. Bxa6 {[%emt 0:02:28]} Rxb4 {[%emt 0:00:01]} 37. Rc2 {[%emt 0:00:20]} Rb1 {[%emt 0:03:07]} 38. Re2 {[%emt 0:01:08]} Nf6 {[%emt 0:02:04]} 39. Bc4 {[%emt 0:02:04]} Rb4 {[%emt 0:00:56]} 40. Rc2 {[%emt 0:00:13]} Kc7 {[%emt 0:01:07]} 41. Bb5+ {[%emt 0:00:21]} Kd8 {[%emt 0:00:44]} 42. Be2 {[%emt 0:01:09]} Ke7 {[%emt 0:00:31]} 43. Nd2 {[%emt 0:00:54]} Nd5 {[%emt 0:00:37]} 44. Kh3 {[%emt 0:01:24]} Nf6 {[%emt 0:00:29]} 45. Kg2 {[%emt 0:00:35]} Nd5 {[%emt 0:00:35]} 46. Kh3 {[%emt 0:00:01]} Ne3 {[%emt 0:00:37]} 47. Rc6 {[%emt 0:00:48]} Rd4 {[%emt 0:00:30]} 48. Nxe4 {[%emt 0:00:50]} Rxe4 {[%emt 0:00:16]} 1/2-1/2

[Event "EYCC O18-ch 2024"]
[Site "Prague"]
[Date "2024.08.30"]
[Round "8.12"]
[White "Slagboom, Leandro"]
[Black "Hak, David"]
[Result "1/2-1/2"]
[ECO "B36"]
[WhiteElo "2331"]
[BlackElo "2239"]
[Annotator "RC"]
[PlyCount "96"]
[EventDate "2024.08.19"]
[EventType "swiss"]
[EventCountry "CZE"]
[SourceTitle "playchess.com"]
[Source "ChessBase"]
[SourceQuality "1"]
[TimeControl "5400+30"]

1. e4 {[%emt 0:00:03]} c5 {[%emt 0:00:06]} 2. Nf3 {[%emt 0:00:07]} Nc6 {[%emt 0:00:05]} 3. d4 {[%emt 0:00:06]} cxd4 {[%emt 0:00:05]} 4. Nxd4 {[%emt 0:00:07]} g6 {[%emt 0:00:04]} 5. c4 {[%emt 0:00:31]} Nf6 {[%emt 0:00:08]} 6. Nc3 {[%emt 0:00:33]} d6 {[%emt 0:00:05]} 7. f3 {[%emt 0:01:38]} Nxd4 {[%emt 0:03:00]} 8. Qxd4 {[%emt 0:00:07]} Bg7 {[%emt 0:00:11]} 9. Be3 {[%emt 0:00:10]} O-O {[%emt 0:00:37]} 10. Qd2 {[%emt 0:00:04]} Qa5 {[%emt 0:17:59]} 11. Rc1 {[%emt 0:00:45]} Be6 {[%emt 0:01:14]} 12. b3 {[%emt 0:00:40]} a6 {[%emt 0:02:00]} 13. Nd5 {[%emt 0:03:50]} Qxd2+ {[%emt 0:00:59]} 14. Kxd2 {[%emt 0:00:07]} Bxd5 {[%emt 0:01:02]} 15. cxd5 {[%emt 0:00:53]} Rac8 {[%emt 0:16:17]} 16. Be2 {[%emt 0:09:38]} Nd7 {[%emt 0:00:16]} 17. b4 {[%emt 0:09:17]} Bb2 {[%emt 0:03:40]} 18. Rc2 {[%emt 0:12:07]} Rxc2+ {[%emt 0:00:05]} 19. Kxc2 {[%emt 0:00:05]} Be5 {[%emt 0:00:09]} 20. f4 {[%emt 0:03:12]} Rc8+ {[%emt 0:00:28]} 21. Kb1 {[%emt 0:05:24]} Bg7 {[%emt 0:04:27]} 22. Rc1 {[%emt 0:01:31]} Rxc1+ {[%emt 0:01:01]} 23. Kxc1 {[%emt 0:00:23]} Kf8 {[%emt 0:07:28]} 24. g4 {[%emt 0:02:42]} Bc3 {[%emt 0:13:04]} 25. a3 {[%emt 0:06:24]} a5 {[%emt 0:00:43]} 26. bxa5 {[%emt 0:01:11]} Bxa5 {[%emt 0:00:08]} 27. g5 {[%emt 0:01:25]} Bb6 {[%emt 0:13:56]} 28. Bxb6 {[%emt 0:00:37]} Nxb6 {[%emt 0:01:41]} 29. Bb5 {[%emt 0:00:48]} e6 {[%emt 0:01:14]} 30. dxe6 {[%emt 0:00:31]} fxe6 {[%emt 0:00:09]} 31. Kd2 {[%emt 0:00:20]} Ke7 {[%emt 0:06:09]} 32. Ke3 {[%emt 0:00:53]} Nd7 {[%emt 0:02:06]} 33. h4 {[%emt 0:00:38]} Nc5 {[%emt 0:00:35]} 34. Be2 {[%emt 0:00:58]} e5 {[%emt 0:03:40]} 35. f5 {[%emt 0:01:07]} gxf5 {[%emt 0:00:18]} 36. exf5 {[%emt 0:00:01]} d5 {[%emt 0:00:10]} 37. h5 {[%emt 0:02:22]} d4+ {[%emt 0:00:21]} 38. Kf3 {[%emt 0:00:20]} h6 {[%emt 0:02:07]} 39. f6+ {[%emt 0:00:54]} Ke6 {[%emt 0:01:21]} 40. Bc4+ {[%emt 0:01:36]} Kf5 {[%emt 0:00:01]} 41. f7 {[%emt 0:00:30]} Nd7 {[%emt 0:00:01]} 42. gxh6 {[%emt 0:01:04]} e4+ {[%emt 0:00:40]} 43. Ke2 {[%emt 0:04:16]} Nf8 {[%emt 0:00:11]} 44. Kd2 {[%emt 0:00:35]} b6 {[%emt 0:00:46]} 45. Bd5 {[%emt 0:00:20]} Ke5 {[%emt 0:00:28]} 46. Bc6 {[%emt 0:00:10]} Kf4 {[%emt 0:00:54]} 47. Bb7 {[%emt 0:02:40]} Nh7 {[%emt 0:00:18]} 48. Bc6 {[%emt 0:02:52]} Ke5 1/2-1/2

[Event "EYCC O18-ch 2024"]
[Site "Prague"]
[Date "2024.08.30"]
[Round "8.12"]
[White "Torres Rebolledo, Victor"]
[Black "Pidluznij, Gleb"]
[Result "0-1"]
[ECO "D35"]
[WhiteElo "2184"]
[BlackElo "2414"]
[Annotator "RC"]
[PlyCount "176"]
[EventDate "2024.08.19"]
[EventType "swiss"]
[EventCountry "CZE"]
[SourceTitle "playchess.com"]
[Source "ChessBase"]
[SourceQuality "1"]
[TimeControl "5400+30"]

1. d4 {[%emt 0:00:10]} d5 {[%emt 0:00:11]} 2. c4 {[%emt 0:00:13]} e6 {[%emt 0:00:08]} 3. Nc3 {[%emt 0:00:08]} Nf6 {[%emt 0:00:09]} 4. cxd5 {[%emt 0:00:09]} exd5 {[%emt 0:00:09]} 5. Bg5 {[%emt 0:00:28]} Be7 {[%emt 0:00:11]} 6. e3 {[%emt 0:00:20]} O-O {[%emt 0:00:10]} 7. Bd3 {[%emt 0:00:46]} Re8 {[%emt 0:00:28]} 8. Nge2 {[%emt 0:01:07]} Nbd7 {[%emt 0:00:46]} 9. O-O {[%emt 0:00:57]} h6 {[%emt 0:01:15]} 10. Bh4 {[%emt 0:01:16]} c6 {[%emt 0:00:15]} 11. Qc2 {[%emt 0:02:32]} a5 {[%emt 0:00:26]} 12. Bg3 {[%emt 0:03:24]} Bf8 {[%emt 0:06:50]} 13. h3 {[%emt 0:02:10]} b5 {[%emt 0:03:07]} 14. a4 {[%emt 0:09:27]} b4 {[%emt 0:00:58]} 15. Nb1 {[%emt 0:00:08]} c5 {[%emt 0:05:31]} 16. dxc5 {[%emt 0:05:19]} Nxc5 {[%emt 0:00:10]} 17. Bb5 {[%emt 0:00:49]} Bd7 {[%emt 0:01:18]} 18. Bxd7 {[%emt 0:04:54]} Qxd7 {[%emt 0:01:18]} 19. Nd2 {[%emt 0:00:12]} Rec8 {[%emt 0:12:32]} 20. Qd1 {[%emt 0:00:28]} Nfe4 {[%emt 0:02:05]} 21. Nxe4 {[%emt 0:02:54]} dxe4 {[%emt 0:01:58]} 22. Qxd7 {[%emt 0:00:51]} Nxd7 {[%emt 0:00:01]} 23. Nd4 {[%emt 0:02:31]} Nc5 {[%emt 0:02:48]} 24. f3 {[%emt 0:15:54]} g6 {[%emt 0:09:13]} 25. b3 {[%emt 0:13:23]} Bg7 {[%emt 0:02:20]} 26. Rab1 {[%emt 0:00:04]} Rd8 {[%emt 0:03:36]} 27. Rfd1 {[%emt 0:10:17]} Rd7 {[%emt 0:04:07]} 28. Rdc1 {[%emt 0:03:28]} Bxd4 {[%emt 0:09:03]} 29. exd4 {[%emt 0:00:14]} Nd3 {[%emt 0:00:42]} 30. Rd1 {[%emt 0:03:34]} f5 {[%emt 0:01:38]} 31. Bf2 {[%emt 0:00:14]} Rc8 {[%emt 0:01:19]} 32. fxe4 {[%emt 0:01:18]} fxe4 {[%emt 0:00:03]} 33. Rd2 {[%emt 0:01:24]} Rc3 {[%emt 0:03:04]} 34. Be3 {[%emt 0:03:53]} Nc1 {[%emt 0:03:34]} 35. Bxh6 {[%emt 0:02:24]} Rxd4 {[%emt 0:04:06]} 36. Rf2 {[%emt 0:07:01]} Rd1+ {[%emt 0:00:53]} 37. Kh2 {[%emt 0:00:06]} e3 {[%emt 0:00:09]} 38. Re2 {[%emt 0:03:00]} Rh1+ {[%emt 0:01:13]} 39. Kxh1 {[%emt 0:00:18]} Nxe2 {[%emt 0:00:03]} 40. Re1 {[%emt 0:00:30]} Ng3+ {[%emt 0:04:28]} 41. Kg1 {[%emt 0:00:31]} Nf5 {[%emt 0:00:11]} 42. Bg5 {[%emt 0:00:38]} Rxb3 {[%emt 0:00:06]} 43. Bd8 {[%emt 0:00:52]} Ra3 {[%emt 0:02:28]} 44. Bxa5 {[%emt 0:00:02]} Rxa4 {[%emt 0:03:29]} 45. Bb6 {[%emt 0:00:01]} b3 {[%emt 0:04:33]} 46. Rb1 {[%emt 0:00:01]} Re4 {[%emt 0:02:05]} 47. Rxb3 {[%emt 0:02:30]} e2 {[%emt 0:00:08]} 48. Bf2 {[%emt 0:00:22]} e1=Q+ {[%emt 0:00:23]} 49. Bxe1 {[%emt 0:00:02]} Rxe1+ {[%emt 0:00:00]} 50. Kf2 {[%emt 0:00:14]} Ra1 {[%emt 0:00:15]} 51. Rb2 {[%emt 0:00:16]} Kg7 {[%emt 0:00:24]} 52. g4 {[%emt 0:00:33]} Nh4 {[%emt 0:01:07]} 53. Kg3 {[%emt 0:01:33]} g5 {[%emt 0:00:02]} 54. Rb7+ {[%emt 0:00:09]} Kh6 {[%emt 0:00:07]} 55. Rb6+ {[%emt 0:00:10]} Ng6 {[%emt 0:00:02]} 56. Rb3 {[%emt 0:01:40]} Rg1+ {[%emt 0:00:14]} 57. Kh2 {[%emt 0:00:20]} Rd1 {[%emt 0:00:06]} 58. Kg3 {[%emt 0:00:34]} Rd6 {[%emt 0:00:01]} 59. Ra3 {[%emt 0:00:33]} Kg7 {[%emt 0:00:17]} 60. Ra5 {[%emt 0:00:24]} Rd3+ {[%emt 0:00:07]} 61. Kh2 {[%emt 0:00:06]} Kh6 {[%emt 0:00:22]} 62. Ra6 {[%emt 0:00:05]} Rd5 {[%emt 0:04:36]} 63. Rb6 {[%emt 0:00:09]} Kg7 {[%emt 0:00:25]} 64. Rb7+ {[%emt 0:00:27]} Kf6 {[%emt 0:00:05]} 65. Rb6+ {[%emt 0:00:04]} Kf7 {[%emt 0:00:02]} 66. Rb7+ {[%emt 0:00:22]} Ke6 {[%emt 0:00:08]} 67. Rb6+ {[%emt 0:00:06]} Rd6 {[%emt 0:00:01]} 68. Rb5 {[%emt 0:00:02]} Rd2+ {[%emt 0:00:18]} 69. Kg3 {[%emt 0:01:07]} Rd3+ {[%emt 0:00:02]} 70. Kh2 {[%emt 0:00:11]} Nh4 {[%emt 0:00:23]} 71. Ra5 {[%emt 0:01:49]} Rd2+ {[%emt 0:00:54]} 72. Kg1 {[%emt 0:00:11]} Rd5 {[%emt 0:00:09]} 73. Ra8 {[%emt 0:00:35]} Ke5 {[%emt 0:00:54]} 74. Kf2 {[%emt 0:00:13]} Rd2+ {[%emt 0:00:47]} 75. Ke3 {[%emt 0:00:48]} Rh2 {[%emt 0:00:10]} 76. Ra5+ {[%emt 0:00:22]} Kf6 {[%emt 0:00:02]} 77. Ke4 {[%emt 0:00:58]} Rxh3 {[%emt 0:01:08]} 78. Ra6+ {[%emt 0:00:08]} Kg7 {[%emt 0:00:02]} 79. Ra7+ {[%emt 0:00:10]} Kh6 {[%emt 0:00:01]} 80. Ra6+ {[%emt 0:01:19]} Ng6 {[%emt 0:00:07]} 81. Rb6 {[%emt 0:01:05]} Rg3 {[%emt 0:00:09]} 82. Kf5 {[%emt 0:00:36]} Rf3+ {[%emt 0:00:07]} 83. Ke6 {[%emt 0:00:10]} Rf4 {[%emt 0:00:05]} 84. Rb1 {[%emt 0:00:29]} Rxg4 {[%emt 0:00:10]} 85. Rh1+ {[%emt 0:00:32]} Rh4 {[%emt 0:00:01]} 86. Ra1 {[%emt 0:00:10]} Kh5 {[%emt 0:00:06]} 87. Kf6 {[%emt 0:00:08]} Rf4+ {[%emt 0:00:07]} 88. Kg7 {[%emt 0:00:03]} Nh4 {[%emt 0:00:08]} 0-1

[Event "EYCC O18-ch 2024"]
[Site "Prague"]
[Date "2024.08.30"]
[Round "8.13"]
[White "Soderstrom, Adrian"]
[Black "Valiyev, Shahin"]
[Result "1/2-1/2"]
[ECO "B97"]
[WhiteElo "2318"]
[BlackElo "2245"]
[Annotator "RC"]
[PlyCount "44"]
[EventDate "2024.08.19"]
[EventType "swiss"]
[EventCountry "CZE"]
[SourceTitle "playchess.com"]
[Source "ChessBase"]
[SourceQuality "1"]
[TimeControl "5400+30"]

1. e4 {[%emt 0:00:03]} c5 {[%emt 0:00:14]} 2. Nf3 {[%emt 0:00:04]} d6 {[%emt 0:00:05]} 3. d4 {[%emt 0:00:04]} cxd4 {[%emt 0:00:05]} 4. Nxd4 {[%emt 0:00:03]} Nf6 {[%emt 0:00:10]} 5. Nc3 {[%emt 0:00:02]} a6 {[%emt 0:00:17]} 6. Bg5 {[%emt 0:00:05]} e6 {[%emt 0:00:49]} 7. f4 {[%emt 0:00:06]} Qb6 {[%emt 0:00:10]} 8. Qd2 {[%emt 0:00:12]} Qxb2 {[%emt 0:00:46]} 9. Rb1 {[%emt 0:00:05]} Qa3 {[%emt 0:00:08]} 10. e5 {[%emt 0:00:21]} h6 {[%emt 0:00:48]} 11. Bh4 {[%emt 0:00:34]} dxe5 {[%emt 0:00:20]} 12. fxe5 {[%emt 0:00:02]} Nd5 {[%emt 0:00:06]} 13. Nxd5 {[%emt 0:02:52]} exd5 {[%emt 0:00:13]} 14. e6 {[%emt 0:01:04]} Bxe6 {[%emt 0:00:14]} 15. Nxe6 {[%emt 0:17:28]} fxe6 {[%emt 0:00:07]} 16. Be2 {[%emt 0:00:58]} Be7 {[%emt 0:00:06]} 17. Bxe7 {[%emt 0:08:43]} Kxe7 {[%emt 0:00:31]} 18. Qd4 {[%emt 0:13:03]} Nc6 {[%emt 0:10:19]} 19. Rxb7+ {[%emt 0:09:42]} Kd6 {[%emt 0:00:52]} 20. Qxg7 {[%emt 0:01:09]} Qc1+ {[%emt 0:00:11]} 21. Bd1 {[%emt 0:00:06]} Qe3+ {[%emt 0:00:06]} 22. Be2 {[%emt 0:00:16]} Qc1+ {[%emt 0:00:18]} 1/2-1/2

[Event "EYCC O18-ch 2024"]
[Site "Prague"]
[Date "2024.08.30"]
[Round "8.13"]
[White "Perets, Dmytro"]
[Black "Serrano Almendros, Angel"]
[Result "0-1"]
[ECO "C00"]
[WhiteElo "2166"]
[BlackElo "2310"]
[Annotator "RC"]
[PlyCount "52"]
[EventDate "2024.08.19"]
[EventType "swiss"]
[EventCountry "CZE"]
[SourceTitle "playchess.com"]
[Source "ChessBase"]
[SourceQuality "1"]
[TimeControl "5400+30"]

1. e4 {[%emt 0:00:03]} e6 {[%emt 0:00:28]} 2. d3 {[%emt 0:00:04]} d5 {[%emt 0:00:03]} 3. Nd2 {[%emt 0:00:05]} c5 {[%emt 0:00:03]} 4. Ngf3 {[%emt 0:00:16]} Nc6 {[%emt 0:00:03]} 5. g3 {[%emt 0:00:06]} g6 {[%emt 0:00:03]} 6. Bg2 {[%emt 0:00:06]} Bg7 {[%emt 0:00:03]} 7. O-O {[%emt 0:00:12]} Nge7 {[%emt 0:00:04]} 8. Re1 {[%emt 0:00:24]} O-O {[%emt 0:00:05]} 9. c3 {[%emt 0:01:18]} e5 {[%emt 0:00:23]} 10. exd5 {[%emt 0:01:14]} Nxd5 {[%emt 0:00:14]} 11. Nc4 {[%emt 0:00:18]} Re8 {[%emt 0:01:15]} 12. a4 {[%emt 0:00:01]} Bf5 {[%emt 0:05:19]} 13. Ng5 {[%emt 0:03:16]} Nf6 {[%emt 0:30:33]} 14. Bxc6 {[%emt 0:06:20]} bxc6 {[%emt 0:00:13]} 15. Nxe5 {[%emt 0:00:47]} Qd5 {[%emt 0:19:29]} 16. c4 {[%emt 0:11:46]} Qd4 {[%emt 0:03:48]} 17. Ngxf7 {[%emt 0:11:16]} Ng4 {[%emt 0:04:57]} 18. Be3 {[%emt 0:00:14]} Nxe3 {[%emt 0:00:04]} 19. fxe3 {[%emt 0:00:03]} Qxb2 {[%emt 0:00:05]} 20. Rb1 {[%emt 0:00:16]} Qc3 {[%emt 0:02:40]} 21. Rc1 {[%emt 0:01:41]} Qa5 {[%emt 0:02:08]} 22. d4 {[%emt 0:00:51]} Qc7 {[%emt 0:00:48]} 23. Rf1 {[%emt 0:11:48]} cxd4 {[%emt 0:05:47]} 24. exd4 {[%emt 0:01:12]} c5 {[%emt 0:00:04]} 25. Re1 {[%emt 0:05:12]} cxd4 {[%emt 0:01:24]} 26. Qxd4 {[%emt 0:00:52]} Qxf7 {[%emt 0:00:27]} 0-1

[Event "EYCC O18-ch 2024"]
[Site "Prague"]
[Date "2024.08.30"]
[Round "8.14"]
[White "Loftgaard, Mikkel Vinh"]
[Black "Garcia Fernandez, Victor"]
[Result "1/2-1/2"]
[ECO "B30"]
[WhiteElo "2227"]
[BlackElo "2313"]
[Annotator "RC"]
[PlyCount "51"]
[EventDate "2024.08.19"]
[EventType "swiss"]
[EventCountry "CZE"]
[SourceTitle "playchess.com"]
[Source "ChessBase"]
[SourceQuality "1"]
[TimeControl "5400+30"]

1. e4 {[%emt 0:00:01]} c5 {[%emt 0:00:07]} 2. Nf3 {[%emt 0:00:02]} Nc6 {[%emt 0:00:10]} 3. c3 {[%emt 0:00:06]} Nf6 {[%emt 0:00:28]} 4. e5 {[%emt 0:00:02]} Nd5 {[%emt 0:00:05]} 5. d4 {[%emt 0:00:07]} cxd4 {[%emt 0:00:09]} 6. cxd4 {[%emt 0:00:07]} d6 {[%emt 0:00:22]} 7. Bc4 {[%emt 0:00:05]} dxe5 {[%emt 0:00:43]} 8. Nxe5 {[%emt 0:00:41]} e6 {[%emt 0:00:15]} 9. Nxc6 {[%emt 0:00:46]} bxc6 {[%emt 0:00:05]} 10. O-O {[%emt 0:00:10]} Be7 {[%emt 0:00:14]} 11. Nc3 {[%emt 0:00:24]} O-O {[%emt 0:04:43]} 12. Qf3 {[%emt 0:01:10]} Qb6 {[%emt 0:17:43]} 13. Rd1 {[%emt 0:00:46]} Bb7 {[%emt 0:01:31]} 14. Na4 {[%emt 0:06:41]} Qa5 {[%emt 0:06:09]} 15. Bb3 {[%emt 0:01:00]} c5 {[%emt 0:11:12]} 16. Bd2 {[%emt 0:04:03]} Qb5 {[%emt 0:00:17]} 17. Nxc5 {[%emt 0:00:46]} Bxc5 {[%emt 0:00:06]} 18. dxc5 {[%emt 0:00:09]} Qxc5 {[%emt 0:00:08]} 19. Rac1 {[%emt 0:02:53]} Qe7 {[%emt 0:00:12]} 20. Qg3 {[%emt 0:00:27]} Qf6 {[%emt 0:01:02]} 21. Bg5 {[%emt 0:01:30]} Qg6 {[%emt 0:01:56]} 22. Bc2 {[%emt 0:01:55]} f5 {[%emt 0:02:21]} 23. Bd2 {[%emt 0:00:22]} Qxg3 {[%emt 0:00:24]} 24. hxg3 {[%emt 0:00:03]} Rac8 {[%emt 0:00:31]} 25. Bb3 {[%emt 0:00:20]} Kf7 {[%emt 0:00:32]} 26. f3 {[%emt 0:00:25]} 1/2-1/2

[Event "EYCC O18-ch 2024"]
[Site "Prague"]
[Date "2024.08.30"]
[Round "8.14"]
[White "Salgovic, Simon"]
[Black "Paseka, Matyas"]
[Result "0-1"]
[ECO "B90"]
[WhiteElo "2144"]
[BlackElo "2281"]
[Annotator "RC"]
[PlyCount "52"]
[EventDate "2024.08.19"]
[EventType "swiss"]
[EventCountry "CZE"]
[SourceTitle "playchess.com"]
[Source "ChessBase"]
[SourceQuality "1"]
[TimeControl "5400+30"]

1. e4 {[%emt 0:00:08]} c5 {[%emt 0:00:06]} 2. Nf3 {[%emt 0:00:19]} d6 {[%emt 0:00:07]} 3. d4 {[%emt 0:00:21]} cxd4 {[%emt 0:00:11]} 4. Nxd4 {[%emt 0:00:08]} Nf6 {[%emt 0:00:06]} 5. Nc3 {[%emt 0:00:06]} a6 {[%emt 0:00:05]} 6. Qf3 {[%emt 0:00:08]} g6 {[%emt 0:07:41]} 7. h3 {[%emt 0:00:16]} Bg7 {[%emt 0:00:41]} 8. Be3 {[%emt 0:00:44]} O-O {[%emt 0:08:42]} 9. O-O-O {[%emt 0:00:44]} Qa5 {[%emt 0:00:18]} 10. Nb3 {[%emt 0:07:24]} Qc7 {[%emt 0:00:07]} 11. g4 {[%emt 0:01:05]} Be6 {[%emt 0:01:35]} 12. Nd5 {[%emt 0:07:56]} Bxd5 {[%emt 0:01:07]} 13. exd5 {[%emt 0:00:13]} Rc8 {[%emt 0:08:03]} 14. Qe2 {[%emt 0:21:28]} b5 {[%emt 0:00:43]} 15. Bg2 {[%emt 0:14:41]} a5 {[%emt 0:06:36]} 16. Nd4 {[%emt 0:09:07]} b4 {[%emt 0:00:36]} 17. g5 {[%emt 0:03:27]} Nfd7 {[%emt 0:00:24]} 18. Nb5 {[%emt 0:06:50]} Qb7 {[%emt 0:05:36]} 19. Bd4 {[%emt 0:01:56]} Ne5 {[%emt 0:14:00]} 20. a4 {[%emt 0:11:21]} bxa3 {[%emt 0:04:56]} 21. Nxa3 {[%emt 0:00:09]} Na6 {[%emt 0:00:55]} 22. f4 {[%emt 0:05:55]} Nd7 {[%emt 0:00:53]} 23. Qb5 {[%emt 0:05:00]} Qc7 {[%emt 0:02:35]} 24. Bxg7 {[%emt 0:01:15]} Kxg7 {[%emt 0:00:05]} 25. Rd3 {[%emt 0:00:27]} Nb4 {[%emt 0:01:29]} 26. Rd2 {[%emt 0:00:38]} Rab8 {[%emt 0:00:08]} 0-1

[Event "EYCC O18-ch 2024"]
[Site "Prague"]
[Date "2024.08.30"]
[Round "8.15"]
[White "Xhembulla, Aleksander"]
[Black "Ristic, Luka"]
[Result "1-0"]
[ECO "B00"]
[WhiteElo "2201"]
[BlackElo "2274"]
[Annotator "RC"]
[PlyCount "107"]
[EventDate "2024.08.19"]
[EventType "swiss"]
[EventCountry "CZE"]
[SourceTitle "playchess.com"]
[Source "ChessBase"]
[SourceQuality "1"]
[TimeControl "5400+30"]

1. e4 {[%emt 0:00:03]} Nc6 {[%emt 0:04:47]} 2. d4 {[%emt 0:00:06]} d5 {[%emt 0:00:34]} 3. e5 {[%emt 0:00:06]} Bf5 {[%emt 0:00:33]} 4. c3 {[%emt 0:00:05]} e6 {[%emt 0:01:09]} 5. Nd2 {[%emt 0:00:18]} h5 {[%emt 0:07:42]} 6. f4 {[%emt 0:13:06]} Nh6 {[%emt 0:10:12]} 7. Ndf3 {[%emt 0:02:37]} f6 {[%emt 0:06:33]} 8. Bd3 {[%emt 0:00:36]} Be7 {[%emt 0:07:05]} 9. Ne2 {[%emt 0:03:09]} fxe5 {[%emt 0:12:56]} 10. fxe5 {[%emt 0:03:15]} Qd7 {[%emt 0:06:16]} 11. Ng3 {[%emt 0:29:17]} g6 {[%emt 0:03:16]} 12. Nxf5 {[%emt 0:04:01]} gxf5 {[%emt 0:02:04]} 13. Bf4 {[%emt 0:01:50]} O-O-O {[%emt 0:01:25]} 14. Qd2 {[%emt 0:00:03]} Nf7 {[%emt 0:00:20]} 15. O-O-O {[%emt 0:03:13]} Rdg8 {[%emt 0:01:07]} 16. Kb1 {[%emt 0:01:20]} Bf8 {[%emt 0:02:07]} 17. Bb5 {[%emt 0:06:43]} Bh6 {[%emt 0:06:06]} 18. Bxh6 {[%emt 0:07:40]} Rxh6 {[%emt 0:00:16]} 19. Rhe1 {[%emt 0:00:05]} a6 {[%emt 0:03:30]} 20. Ba4 {[%emt 0:00:59]} b5 {[%emt 0:02:54]} 21. Bc2 {[%emt 0:00:29]} h4 {[%emt 0:00:28]} 22. b3 {[%emt 0:00:56]} Rh5 {[%emt 0:01:18]} 23. Bd3 {[%emt 0:02:46]} Ng5 {[%emt 0:01:09]} 24. Nxg5 {[%emt 0:01:46]} Rhxg5 {[%emt 0:00:08]} 25. Bf1 {[%emt 0:00:10]} Rg4 {[%emt 0:01:31]} 26. a4 {[%emt 0:01:10]} Na7 {[%emt 0:02:52]} 27. axb5 {[%emt 0:00:39]} Nxb5 {[%emt 0:00:17]} 28. Qb2 {[%emt 0:01:22]} c6 {[%emt 0:05:29]} 29. Rd2 {[%emt 0:01:19]} Qa7 {[%emt 0:03:34]} 30. Red1 {[%emt 0:00:35]} Kd7 {[%emt 0:03:09]} 31. c4 {[%emt 0:06:11]} Nc7 {[%emt 0:01:36]} 32. Qa3 {[%emt 0:00:51]} Qb6 {[%emt 0:00:27]} 33. Qd6+ {[%emt 0:05:40]} Kc8 {[%emt 0:00:02]} 34. Ka2 {[%emt 0:01:10]} Rd8 {[%emt 0:00:17]} 35. Qa3 {[%emt 0:01:48]} a5 {[%emt 0:00:32]} 36. Qb2 {[%emt 0:01:41]} Na6 {[%emt 0:01:07]} 37. Qc3 {[%emt 0:00:35]} Kb7 {[%emt 0:00:42]} 38. Kb2 {[%emt 0:00:34]} Nb4 {[%emt 0:00:49]} 39. c5 {[%emt 0:00:22]} Qc7 {[%emt 0:00:17]} 40. Ra1 {[%emt 0:00:09]} Re4 {[%emt 0:01:19]} 41. Ra4 {[%emt 0:00:59]} f4 {[%emt 0:00:38]} 42. Rd1 {[%emt 0:00:25]} Kc8 {[%emt 0:01:22]} 43. Rda1 {[%emt 0:00:07]} Re3 {[%emt 0:00:16]} 44. Qd2 {[%emt 0:00:27]} Kd7 {[%emt 0:01:45]} 45. Rxa5 {[%emt 0:00:04]} Rb8 {[%emt 0:00:11]} 46. R1a4 {[%emt 0:00:44]} Ke8 {[%emt 0:00:49]} 47. Rxb4 {[%emt 0:00:13]} h3 {[%emt 0:00:30]} 48. gxh3 {[%emt 0:00:17]} Rf3 {[%emt 0:00:21]} 49. Rxb8+ {[%emt 0:01:28]} Qxb8 {[%emt 0:00:05]} 50. Bd3 {[%emt 0:00:04]} Rxh3 {[%emt 0:00:40]} 51. Qg2 {[%emt 0:00:19]} Rh8 {[%emt 0:00:48]} 52. Qg6+ {[%emt 0:00:28]} Kd7 {[%emt 0:00:14]} 53. Qg7+ {[%emt 0:00:11]} Kd8 {[%emt 0:00:08]} 54. Qxh8+ {[%emt 0:00:05]} 1-0